bitfinex/quotes_SOLUSD_20250724
["timestamp","ask_amount","ask_price","bid_price","bid_amount"]
[1753365682858,41.02,184.62,184.58,9.03865826]
[1753365683162,0.66,184.71,184.62,16.78468397]
[1753365683372,0.03,184.72,184.68,9.03865826]
[1753365683666,0.03,184.72,184.66,5.41523377]
[1753365683667,0.03,184.72,184.71,9.03865826]
[1753365683835,0.03,184.8,184.72,16.78468397]
[1753365684158,0.03,184.8,184.79,9.03865826]
[1753365684366,0.03,184.8,184.75,16.78468397]
[1753365684580,0.03,184.8,184.79,9.03865826]
[1753365685135,0.03,184.8,184.79,26.56766537]
[1753365685557,0.2,184.86,184.8,0.28432314]
[1753365685759,0.2,184.86,184.85,9.03865826]
[1753365686180,0.2,184.86,184.85,32.72096537]
[1753365686384,0.2,184.86,184.85,33.26194454]
[1753365686577,0.2,184.91,184.86,0.28432314]
[1753365686779,0.2,184.91,184.9,25.82334223]
[1753365686989,0.2,184.91,184.9,26.64849825]
[1753365687174,0.03,184.92,184.88,16.78468397]
[1753365687373,0.03,184.92,184.91,9.03865826]
[1753365688504,0.03,184.92,184.91,15.24749823]
[1753365689170,0.03,184.92,184.91,15.53182137]
[1753365689368,0.03,184.92,184.91,41.3551636]
[1753365689573,0.03,184.96,184.93,0.28432314]
[1753365689900,0.03,184.96,184.95,26.10766537]
[1753365690074,0.03,184.96,184.95,26.36766537]
[1753365690277,0.03,184.96,184.95,32.59066537]
[1753365690784,0.2,184.98,184.97,44.59000711]
[1753365691088,0.03,184.99,184.98,17.06900711]
[1753365691291,0.2,185.09,184.98,35.40632363]
[1753365691495,0.2,185.09,185.08,9.03865826]
[1753365692192,0.2,185.09,185.03,0.80045289]
[1753365692373,0.86,185.09,185.07,9.03865826]
[1753365692570,0.2,185.09,185.07,9.03865826]
[1753365692771,0.2,185.09,185.08,9.03865826]
[1753365692973,0.2,185.09,185.08,58.37164223]
[1753365693189,0.2,185.09,185.08,15.58695826]
[1753365693901,9.89865826,185.09,184.99,6.2065]
[1753365694082,0.66,185.08,185.03,9.03865826]
[1753365694287,9.23865826,185.09,185.05,9.03865826]
[1753365694288,0.66,185.07,185.05,9.03865826]
[1753365694490,0.66,185.08,185.06,9.03865826]
[1753365694700,0.2,185.09,185.07,9.03865826]
[1753365694902,0.2,185.09,185.08,9.03865826]
[1753365695599,0.2,185.09,185.08,31.48641117]
[1753365695901,0.2,185.09,185.08,32.3110412]
[1753365696295,0.2,185.11,185.09,16.78468397]
[1753365696604,0.2,185.11,185.1,59.22441388]
[1753365696980,0.03,185.14,185.11,17.06900711]
[1753365697197,0.03,185.14,185.13,34.86200049]
[1753365697602,0.03,185.14,185.13,40.8079333]
[1753365698706,0.03,185.14,185.13,66.8079333]
[1753365699104,0.03,185.14,185.13,57.50927504]
[1753365699295,0.03,185.14,185.13,97.74927504]
[1753365699603,0.03,185.14,185.13,107.58809426]
[1753365700398,0.03,185.14,185.13,66.80377112]
[1753365700603,0.03,185.14,185.13,98.00511286]
[1753365701110,0.75,185.14,185.11,9.03865826]
[1753365701610,0.03,185.14,185.11,9.03865826]
[1753365701783,0.03,185.14,185.13,9.03865826]
[1753365702505,0.75,185.14,185.12,9.03865826]
[1753365702809,0.75,185.14,185.11,9.03865826]
[1753365703210,0.03,185.14,185.13,9.03865826]
[1753365703710,0.03,185.14,185.12,46.18203647]
[1753365703914,0.03,185.14,185.13,9.03865826]
[1753365704099,0.03,185.14,185.12,9.03865826]
[1753365704100,0.75,185.14,185.12,9.03865826]
[1753365704832,0.03,185.14,185.13,9.03865826]
[1753365705190,0.03,185.14,185.08,16.92684554]
[1753365705191,9.78865826,185.14,185.08,16.78468397]
[1753365705488,0.75,185.14,185.11,9.03865826]
[1753365705688,0.03,185.14,185.13,9.03865826]
[1753365706323,0.03,185.14,185.13,25.82334223]
[1753365706488,0.03,185.14,185.13,35.94648459]
[1753365706688,0.03,185.14,185.13,9.57881922]
[1753365706906,0.03,185.14,185.13,35.03865826]
[1753365707331,0.75,185.14,185.13,9.03865826]
[1753365708096,0.03,185.14,185.13,14.44026793]
[1753365708288,0.03,185.14,185.13,40.26361016]
[1753365708516,0.03,185.14,185.13,40.8079333]
[1753365709225,0.03,185.14,185.13,40.5479333]
[1753365709725,0.03,185.14,185.13,40.8079333]
[1753365710419,0.03,185.18,185.17,0.14216157]
[1753365710617,0.03,185.22,185.17,92.84770965]
[1753365710800,0.03,185.22,185.21,9.03865826]
[1753365711221,0.72,185.21,185.2,9.03865826]
[1753365711519,0.72,185.21,185.15,17.60910972]
[1753365711520,0.72,185.21,185.19,9.03865826]
[1753365711697,0.03,185.22,185.16,40.2]
[1753365711698,0.72,185.2,185.16,40.2]
[1753365711897,5.42900058,185.22,185.18,9.03865826]
[1753365712094,0.72,185.19,185.18,9.03865826]
[1753365712353,6.12001192,185.19,185.16,9.03865826]
[1753365712628,9.03865826,185.17,185.12,9.03865826]
[1753365712923,5.40001192,185.19,185.09,16.78468397]
[1753365712924,9.03865826,185.15,185.09,9.03865826]
[1753365713225,0.72,185.14,185.09,9.03865826]
[1753365713437,0.72,185.13,185.11,9.03865826]
[1753365713805,0.72,185.13,185.07,66.2]
[1753365714013,0.72,185.13,185.11,9.03865826]
[1753365714601,0.72,185.16,185.12,9.03865826]
[1753365714904,0.72,185.15,185.13,9.03865826]
[1753365715104,0.72,185.14,185.12,9.03865826]
[1753365715795,0.72,185.13,185.1,9.03865826]
[1753365716000,0.72,185.12,185.1,9.03865826]
[1753365716410,0.72,185.16,185.11,9.03865826]
[1753365716725,5.39927649,185.21,185.15,9.03865826]
[1753365716926,5.39927649,185.21,185.16,9.03865826]
[1753365717107,6.11927649,185.21,185.16,9.03865826]
[1753365717427,0.72,185.2,185.17,9.03865826]
[1753365717621,0.72,185.19,185.17,9.03865826]
[1753365717826,0.72,185.18,185.17,9.03865826]
[1753365718012,0.72,185.18,185.16,9.03865826]
[1753365718521,0.72,185.17,185.14,9.03865826]
[1753365718724,9.03865826,185.2,185.14,9.03865826]
[1753365718725,0.72,185.16,185.14,9.03865826]
[1753365718908,0.72,185.19,185.15,9.03865826]
[1753365719110,0.72,185.19,185.17,9.03865826]
[1753365719325,14.46768524,185.22,185.16,9.03865826]
[1753365719503,0.72,185.18,185.15,9.03865826]
[1753365720022,0.72,185.18,185.17,9.03865826]
[1753365720220,0.72,185.17,185.05,0.26]
[1753365720418,9.03865826,185.15,185.1,9.03865826]
[1753365720625,9.03865826,185.12,185.04,5.94460811]
[1753365720805,9.03865826,185.08,185.03,9.03865826]
[1753365721130,9.03865826,185.05,185.0,9.03865826]
[1753365721328,9.03865826,185.05,184.98,6.5557]
[1753365721329,9.03865826,185.04,184.98,15.59435826]
[1753365721625,0.72,185.03,184.95,0.06]
[1753365721827,9.03865826,184.97,184.95,0.06]
[1753365722029,39.51119639,185.04,184.95,0.06]
[1753365722236,39.51119639,185.04,184.96,9.03865826]
[1753365722237,0.72,184.99,184.96,9.03865826]
[1753365722615,5.40394487,185.05,184.95,0.06]
[1753365722815,0.72,185.05,184.95,0.32]
[1753365723012,0.72,185.05,185.01,9.03865826]
[1753365723225,40.2,185.08,185.04,13.76035866]
[1753365723226,40.92,185.08,185.04,13.76035866]
[1753365723427,13.76035866,185.06,184.96,0.54065743]
[1753365723639,13.76035866,185.04,184.98,13.76035866]
[1753365723829,13.76035866,185.01,184.96,13.76035866]
[1753365724142,13.76035866,185.01,184.95,0.06]
[1753365724143,13.76035866,184.97,184.95,0.06]
[1753365724639,0.72,184.96,184.95,0.06]
[1753365725923,14.48035866,184.99,184.95,0.06]
[1753365726136,0.72,184.99,184.96,13.76035866]
[1753365726439,0.72,185.03,184.98,13.76035866]
[1753365726625,0.72,185.02,184.95,0.06]
[1753365726937,13.76035866,185.01,184.95,0.06]
[1753365727140,0.72,185.0,184.95,0.06]
[1753365727311,0.72,184.99,184.96,13.76035866]
[1753365727509,18.91494011,185.04,184.98,13.76035866]
[1753365727510,14.48035866,185.03,184.98,13.76035866]
[1753365727725,13.50862658,185.07,185.02,13.76035866]
[1753365727726,0.72,185.06,185.02,13.76035866]
[1753365727928,0.72,185.06,185.04,13.76035866]
[1753365728213,0.72,185.05,185.03,13.76035866]
[1753365728729,6.11191972,185.12,185.04,14.30078235]
[1753365728922,6.11191972,185.12,185.08,13.76035866]
[1753365729238,0.71,185.11,185.08,13.76035866]
[1753365729539,0.71,185.11,185.07,13.76035866]
[1753365729716,0.71,185.11,185.03,5.40452899]
[1753365729717,0.71,185.1,185.03,5.40452899]
[1753365729911,6.11250512,185.1,185.05,13.76035866]
[1753365730141,14.47035866,185.09,185.03,13.76035866]
[1753365730439,0.71,185.08,185.03,13.76035866]
[1753365730622,0.71,185.08,185.05,13.76035866]
[1753365730812,0.71,185.08,185.06,13.76035866]
[1753365731011,5.40222759,185.11,185.05,13.76035866]
[1753365731012,6.11222759,185.11,185.05,13.76035866]
[1753365731334,13.76035866,185.06,184.95,5.46682693]
[1753365731634,26.0,185.08,184.95,5.46682693]
[1753365731635,13.76035866,184.99,184.95,5.46682693]
[1753365731840,13.76035866,185.0,184.95,19.22718559]
[1753365732031,5.40491921,185.02,184.96,13.76035866]
[1753365732229,19.16527787,185.02,184.96,13.76035866]
[1753365732431,19.16527787,185.02,184.95,0.06]
[1753365732432,13.76035866,184.97,184.95,0.06]
[1753365732638,13.76035866,184.96,184.95,0.06]
[1753365732819,14.47035866,184.96,184.94,0.06]
[1753365733022,14.47035866,184.95,184.94,0.06]
[1753365733219,14.47035866,184.95,184.9,0.06]
[1753365733422,13.76035866,184.92,184.9,0.06]
[1753365733618,13.76035866,184.91,184.9,0.06]
[1753365733837,5.40832882,184.9,184.87,0.06]
[1753365734144,13.76035866,184.88,184.87,0.06]
[1753365734518,14.47035866,184.88,184.87,0.06]
[1753365735817,19.87927255,184.88,184.87,0.06]
[1753365736031,0.71,184.92,184.87,0.06]
[1753365736220,54.77035866,184.91,184.87,0.06]
[1753365736632,14.47035866,184.9,184.87,0.06]
[1753365736832,14.47035866,184.96,184.87,0.5]
[1753365737152,40.32,184.95,184.87,0.60092064]
[1753365737323,13.76035866,184.94,184.89,13.76035866]
[1753365737516,0.71,184.93,184.87,26.06]
[1753365737848,13.76035866,184.88,184.87,0.06]
[1753365738055,0.71,184.88,184.87,0.06]
[1753365738230,13.76035866,184.9,184.87,0.06]
[1753365738427,40.36,184.91,184.88,13.76035866]
[1753365738724,13.76035866,184.89,184.87,0.06]
[1753365738926,13.76035866,184.88,184.87,0.06]
[1753365739138,14.47035866,184.88,184.87,0.06]
[1753365740137,13.76035866,184.89,184.87,0.06]
[1753365740444,54.12035866,184.89,184.87,0.06]
[1753365740642,0.71,184.91,184.87,0.06]
[1753365740851,54.10035866,184.93,184.88,13.76035866]
[1753365741024,54.10035866,184.93,184.87,13.82035866]
[1753365741222,13.76035866,184.9,184.87,0.06]
[1753365741431,13.76035866,184.89,184.87,0.06]
[1753365741756,0.71,184.91,184.87,0.06]
[1753365741958,13.76035866,184.97,184.88,0.98089138]
[1753365742167,13.76035866,184.95,184.9,13.76035866]
[1753365742458,40.36,184.96,184.88,6.365]
[1753365742459,40.36,184.96,184.92,13.76035866]
[1753365742626,14.47035866,184.96,184.91,13.76035866]
[1753365742966,40.36,184.97,184.88,11.77390884]
[1753365743280,40.36,184.97,184.91,13.76035866]
[1753365743281,54.12035866,184.97,184.91,13.76035866]
[1753365743555,13.76035866,184.92,184.87,0.06]
[1753365743723,13.76035866,184.88,184.87,0.06]
[1753365743923,14.47035866,184.88,184.87,0.06]
[1753365744264,19.87927255,184.88,184.87,0.06]
[1753365744438,19.87927255,184.88,184.79,15.32595866]
[1753365744769,13.76035866,184.85,184.8,13.76035866]
[1753365744941,40.36,184.89,184.79,6.97711055]
[1753365745141,14.47035866,184.87,184.81,13.76035866]
[1753365745455,13.76035866,184.86,184.81,13.76035866]
[1753365745661,14.47035866,184.86,184.81,13.76035866]
[1753365745966,14.47035866,184.86,184.82,13.76035866]
[1753365745967,40.36,184.86,184.82,13.76035866]
[1753365746127,13.76035866,184.91,184.85,13.76035866]
[1753365746331,40.36,184.9,184.88,13.76035866]
[1753365746563,0.03,184.96,184.89,13.76035866]
[1753365746759,0.03,184.96,184.88,26.0]
[1753365746760,40.41,184.96,184.92,13.76035866]
[1753365746942,40.41,184.96,184.93,13.76035866]
[1753365747138,0.03,184.96,184.95,13.76035866]
[1753365747439,0.03,184.96,184.89,0.14216157]
[1753365747440,0.03,184.96,184.94,13.76035866]
[1753365747636,0.71,184.95,184.88,32.0979]
[1753365747855,13.76035866,184.94,184.88,32.0979]
[1753365748028,13.76035866,184.93,184.88,32.0979]
[1753365748229,1.21,184.95,184.91,13.76035866]
[1753365748230,0.5,184.95,184.91,13.76035866]
[1753365748454,0.5,184.95,184.92,13.76035866]
[1753365748954,0.03,184.96,184.94,13.76035866]
[1753365749147,0.71,184.95,184.88,37.50676735]
[1753365749351,0.71,184.95,184.91,13.76035866]
[1753365749560,0.03,184.96,184.92,13.76035866]
[1753365750023,0.74,184.96,184.92,13.76035866]
[1753365750230,0.03,184.96,184.92,19.16803083]
[1753365750467,0.03,184.96,184.93,13.76035866]
[1753365751058,0.03,184.96,184.94,13.76035866]
[1753365751759,0.03,184.96,184.92,5.40767217]
[1753365751956,0.03,184.96,184.94,13.76035866]
[1753365752131,0.03,184.96,184.95,13.76035866]
[1753365752755,0.03,184.96,184.93,5.40738218]
[1753365753059,0.03,184.96,184.94,13.76035866]
[1753365753234,0.03,184.96,184.95,30.54504263]
[1753365753433,40.36,185.04,184.96,16.78468397]
[1753365753646,0.81,185.09,185.03,13.76035866]
[1753365753647,13.76035866,185.08,185.03,13.76035866]
[1753365753848,13.76035866,185.08,184.99,27.01056976]
[1753365754161,13.76035866,185.05,185.0,13.76035866]
[1753365754373,0.71,185.05,185.01,13.76035866]
[1753365754894,0.71,185.08,185.0,5.94593881]
[1753365755081,0.71,185.08,185.03,13.76035866]
[1753365755248,14.47035866,185.08,185.03,13.76035866]
[1753365755448,45.86282155,185.09,185.03,13.76035866]
[1753365755767,13.76035866,185.08,185.03,13.76035866]
[1753365756063,14.47035866,185.08,185.03,13.76035866]
[1753365756270,14.47035866,185.07,185.02,13.76035866]
[1753365756446,13.76035866,185.05,185.0,13.76035866]
[1753365756648,13.76035866,185.08,185.03,13.76035866]
[1753365756968,54.79035866,185.08,185.03,13.76035866]
[1753365757180,40.32,185.08,185.06,13.76035866]
[1753365757668,14.47035866,185.07,185.0,6.6054]
[1753365757850,13.76035866,185.05,185.0,20.36575866]
[1753365758048,13.76035866,185.06,185.01,13.76035866]
[1753365758264,13.76035866,185.07,185.02,13.76035866]
[1753365758465,54.79035866,185.08,185.03,13.76035866]
[1753365758965,13.76035866,185.06,185.01,13.76035866]
[1753365759165,14.44035866,185.06,185.01,13.76035866]
[1753365759367,14.44035866,185.06,185.02,13.76035866]
[1753365759368,0.68,185.06,185.02,13.76035866]
[1753365760859,14.44035866,185.06,185.01,13.76035866]
[1753365761062,0.68,185.05,185.01,13.76035866]
[1753365761283,0.68,185.04,184.98,13.76035866]
[1753365761485,13.76035866,185.07,185.02,13.76035866]
[1753365762099,0.68,185.06,185.02,13.76035866]
[1753365762297,13.76035866,185.07,185.02,13.76035866]
[1753365762790,45.72307138,185.08,185.01,5.40504915]
[1753365762791,14.44035866,185.06,185.01,13.76035866]
[1753365763168,0.68,185.06,185.01,13.76035866]
[1753365763568,13.76035866,185.07,185.01,13.76035866]
[1753365763989,13.76035866,185.06,185.01,13.76035866]
[1753365764305,13.76035866,185.06,185.01,19.1654448]
[1753365764481,40.94,185.08,185.03,13.76035866]
[1753365764682,40.94,185.08,184.96,0.54065743]
[1753365764683,13.76035866,185.04,184.95,6.428]
[1753365764980,13.76035866,184.99,184.93,13.76035866]
[1753365765170,9.01213004,184.97,184.92,9.01213004]
[1753365765371,9.01213004,184.96,184.91,12.04306362]
[1753365765591,9.69213004,184.95,184.91,6.6353]
[1753365765790,9.01213004,184.97,184.91,15.64743004]
[1753365766092,9.01213004,184.97,184.91,12.04331827]
[1753365766293,9.01213004,184.96,184.91,21.05544831]
[1753365766482,40.28,184.98,184.94,9.01213004]
[1753365766689,9.69213004,185.02,184.97,9.01213004]
[1753365766894,0.1,185.09,185.0,9.01213004]
[1753365766895,0.68,185.05,185.0,9.01213004]
[1753365767096,40.3,185.04,185.02,9.01213004]
[1753365767295,0.78,185.09,185.03,13.7602632]
[1753365767485,40.42,185.09,185.06,13.7602632]
[1753365767798,40.42,185.09,185.05,13.7602632]
[1753365768007,14.4402632,185.08,185.0,0.54054054]
[1753365768180,13.7602632,185.06,185.01,13.7602632]
[1753365768376,13.7602632,185.06,184.99,18.38668397]
[1753365768377,13.7602632,185.04,184.98,13.7602632]
[1753365768586,0.68,185.03,184.99,26.0]
[1753365768802,40.34,185.04,185.0,13.7602632]
[1753365768996,0.68,185.07,184.99,26.47]
[1753365769299,54.1002632,185.06,185.01,13.7602632]
[1753365769498,13.7602632,185.08,185.01,0.47]
[1753365769805,13.7602632,185.06,184.99,26.0]
[1753365769973,0.68,185.07,184.99,26.47]
[1753365770175,54.1202632,185.08,185.05,13.7602632]
[1753365770176,40.36,185.08,185.05,13.7602632]
[1753365770387,0.1,185.09,185.07,13.7602632]
[1753365770589,0.1,185.09,185.08,13.7602632]
[1753365771274,0.1,185.09,185.08,31.01494717]
[1753365772279,0.1,185.09,185.08,31.8395772]
[1753365772599,0.03,185.11,185.08,31.8395772]
[1753365772600,0.03,185.11,185.08,65.89705242]
[1753365772794,0.03,185.11,185.1,39.7602632]
[1753365772983,0.03,185.11,185.1,57.36951882]
[1753365773407,0.03,185.11,185.1,57.55519568]
[1753365774522,0.03,185.11,185.1,62.95768082]
[1753365775020,0.03,185.18,185.11,16.78468397]
[1753365775313,0.03,185.18,185.15,13.7602632]
[1753365775604,0.03,185.18,185.16,13.7602632]
[1753365775806,0.03,185.18,185.17,13.7602632]
[1753365776313,0.03,185.18,185.17,14.2302632]
[1753365776604,0.03,185.18,185.17,37.23975742]
[1753365776994,0.03,185.22,185.18,17.06900711]
[1753365777190,0.03,185.22,185.21,13.7602632]
[1753365777506,0.03,185.22,185.21,30.54494717]
[1753365777683,0.03,185.22,185.21,31.01494717]
[1753365778305,0.03,185.22,185.21,31.83919795]
[1753365778513,0.03,185.22,185.21,37.23847444]
[1753365779387,0.03,185.22,185.21,20.16946733]
[1753365779593,0.03,185.22,185.21,19.15953969]
[1753365779804,0.03,185.22,185.21,19.62953969]
[1753365780610,14.4702632,185.22,185.1,1.5642]
[1753365780904,0.68,185.21,185.11,26.0]
[1753365781106,0.03,185.22,185.18,13.7602632]
[1753365781704,0.03,185.22,185.2,13.7602632]
[1753365782005,0.03,185.22,185.21,13.7602632]
[1753365782502,0.03,185.32,185.24,16.92684554]
[1753365782704,0.03,185.32,185.31,13.7602632]
[1753365783904,0.71,185.32,185.26,6.1399]
[1753365784109,13.7602632,185.31,185.25,13.7602632]
[1753365784406,6.10614974,185.32,185.24,13.7602632]
[1753365784407,19.15720852,185.29,185.24,13.7602632]
[1753365784706,13.7602632,185.27,185.22,13.7602632]
[1753365784907,14.4402632,185.26,185.16,6.2104]
[1753365785207,5.39694532,185.29,185.16,11.61111311]
[1753365785208,0.68,185.25,185.16,11.61111311]
[1753365785409,0.68,185.28,185.24,13.7602632]
[1753365785710,6.07670336,185.3,185.25,13.7602632]
[1753365785914,40.35,185.32,185.25,13.7602632]
[1753365785915,0.68,185.29,185.25,13.7602632]
[1753365786302,0.68,185.29,185.23,13.7602632]
[1753365786303,0.68,185.28,185.23,13.7602632]
[1753365786496,0.68,185.27,185.23,13.7602632]
[1753365786703,0.68,185.3,185.26,13.7602632]
[1753365787088,13.7902632,185.32,185.27,13.7602632]
[1753365787446,13.7902632,185.32,185.31,13.7602632]
[1753365787447,0.03,185.32,185.31,13.7602632]
[1753365788307,0.03,185.32,185.3,13.7602632]
[1753365788523,0.03,185.32,185.28,0.53972366]
[1753365788524,0.7,185.32,185.29,13.7602632]
[1753365788685,0.7,185.32,185.26,82.91973937]
[1753365788686,14.4302632,185.31,185.26,82.91973937]
[1753365788891,0.67,185.3,185.26,69.15947617]
[1753365789102,0.67,185.3,185.26,82.91973937]
[1753365789616,0.67,185.29,185.26,82.91973937]
[1753365789823,14.4302632,185.28,185.26,69.15947617]
[1753365790118,0.67,185.27,185.26,69.15947617]
[1753365790795,40.36,185.3,185.26,69.15947617]
[1753365790796,13.7602632,185.29,185.26,69.15947617]
[1753365791111,13.7602632,185.28,185.26,69.15947617]
[1753365791503,0.67,185.27,185.26,69.15947617]
[1753365791691,13.7602632,185.29,185.26,69.15947617]
[1753365791890,13.7602632,185.28,185.26,69.15947617]
[1753365792112,0.67,185.29,185.26,69.15947617]
[1753365792113,13.7602632,185.29,185.26,69.15947617]
[1753365792495,14.4302632,185.29,185.26,69.15947617]
[1753365792809,13.7602632,185.31,185.26,82.91973937]
[1753365793000,14.4302632,185.3,185.26,69.15947617]
[1753365793201,13.7602632,185.28,185.26,69.15947617]
[1753365793384,45.72612039,185.32,185.26,69.15947617]
[1753365793385,13.7602632,185.27,185.26,69.15947617]
[1753365793593,14.4302632,185.27,185.26,69.15947617]
[1753365794009,57.49927031,185.27,185.26,67.29947617]
[1753365794213,40.4302632,185.27,185.26,67.29947617]
[1753365794589,62.89679824,185.27,185.26,39.55666993]
[1753365794792,26.0,185.24,185.21,0.06]
[1753365795018,13.7602632,185.22,185.21,0.06]
[1753365795524,14.3302632,185.22,185.21,0.06]
[1753365795702,13.7602632,185.23,185.21,0.06]
[1753365795900,54.0802632,185.23,185.21,0.06]
[1753365796107,13.7602632,185.22,185.21,0.06]
[1753365798522,14.3302632,185.22,185.21,0.06]
[1753365799042,19.72924819,185.22,185.21,0.06]
[1753365799213,19.15924819,185.22,185.21,0.06]
[1753365799932,36.7982553,185.22,185.21,0.06]
[1753365800819,59.41924819,185.22,185.21,0.06]
[1753365801531,54.0202632,185.22,185.21,0.06]
[1753365801839,59.41924819,185.22,185.21,0.06]
[1753365802024,59.98924819,185.22,185.21,0.06]
[1753365802410,77.0582553,185.22,185.21,0.06]
[1753365802611,17.06900711,185.18,185.14,69.5145214]
[1753365802826,39.7602632,185.15,185.14,69.5145214]
[1753365803137,40.3302632,185.15,185.14,69.5145214]
[1753365803318,45.73128939,185.15,185.14,69.5145214]
[1753365803840,45.73128939,185.15,185.13,0.06]
[1753365803841,62.8002965,185.15,185.13,0.06]
[1753365804032,71.65927031,185.14,185.13,0.06]
[1753365804232,26.0,185.11,185.03,0.66]
[1753365804447,13.7602632,185.07,185.03,0.66]
[1753365804619,54.0602632,185.07,185.03,0.66]
[1753365804821,13.7602632,185.06,185.03,0.66]
[1753365805049,40.3,185.07,185.03,0.66]
[1753365805228,54.0602632,185.07,185.03,0.66]
[1753365805628,13.7602632,185.06,185.03,0.66]
[1753365806139,13.7602632,185.05,185.02,0.2]
[1753365806342,40.26,185.04,185.02,0.2]
[1753365806946,40.26,185.04,185.02,0.86]
[1753365807455,40.26,185.04,185.03,0.66]
[1753365807617,40.26,185.06,185.03,0.66]
[1753365807812,13.7602632,185.09,185.03,13.7602632]
[1753365808039,40.24,185.07,185.03,13.7602632]
[1753365808240,40.24,185.07,185.04,0.66]
[1753365808533,54.0002632,185.07,185.02,0.2]
[1753365808737,13.7602632,185.08,185.03,14.4202632]
[1753365808946,13.7602632,185.08,185.04,0.66]
[1753365808947,40.24,185.07,185.04,0.66]
[1753365809149,54.0002632,185.07,185.02,19.3650034]
[1753365809324,13.7602632,185.05,185.02,0.2]
[1753365809724,40.24,185.07,185.03,0.66]
[1753365810019,13.7602632,185.13,185.06,13.7602632]
[1753365810218,40.28,185.12,185.09,13.7602632]
[1753365810618,40.28,185.12,185.05,0.66]
[1753365810619,13.7602632,185.1,185.05,0.66]
[1753365810849,13.7602632,185.11,185.06,13.7602632]
[1753365811028,13.7602632,185.1,185.05,0.66]
[1753365811338,8.99983138,185.1,185.04,8.99983138]
[1753365811535,5.40219329,185.11,185.04,14.4039485]
[1753365811729,8.99983138,185.08,185.03,8.99983138]
[1753365811932,8.99983138,185.08,185.03,9.65983138]
[1753365812138,8.99983138,185.08,185.03,0.66]
[1753365812318,40.26,185.09,185.03,8.99983138]
[1753365812636,49.25983138,185.09,185.04,9.65983138]
[1753365812939,0.57,185.12,185.08,8.99983138]
[1753365812940,40.24,185.1,185.08,8.99983138]
[1753365813144,5.40102619,185.15,185.09,9.65983138]
[1753365813145,8.99983138,185.15,185.09,9.65983138]
[1753365813444,8.99983138,185.16,185.11,8.99983138]
[1753365813651,8.21561928,185.2,185.12,8.99983138]
[1753365813848,8.21561928,185.2,185.13,8.99983138]
[1753365813849,8.99983138,185.18,185.13,8.99983138]
[1753365814056,8.99983138,185.17,185.11,8.99983138]
[1753365814241,8.99983138,185.13,185.08,40.40282251]
[1753365814558,8.99983138,185.13,185.08,41.06282251]
[1753365814857,26.57,185.17,185.07,6.2631]
[1753365814858,8.99983138,185.11,185.07,6.2631]
[1753365815225,8.99983138,185.11,185.07,5.4033209]
[1753365815555,49.29983138,185.12,185.08,6.06280716]
[1753365815727,26.0,185.17,185.09,9.65983138]
[1753365815928,40.28,185.16,185.11,8.99983138]
[1753365816124,40.28,185.16,185.14,8.99983138]
[1753365816343,4.0953,185.24,185.12,0.66]
[1753365816344,5.96862213,185.24,185.15,15.85633138]
[1753365816546,8.99983138,185.22,185.17,8.99983138]
[1753365816753,8.99983138,185.22,185.17,9.65983138]
[1753365816957,8.99983138,185.22,185.18,0.66]
[1753365817533,40.3,185.23,185.18,8.99983138]
[1753365817732,40.3,185.23,185.19,0.66]
[1753365818232,49.29983138,185.23,185.19,0.66]
[1753365818447,40.3,185.23,185.19,0.66]
[1753365818644,40.3,185.23,185.18,8.99983138]
[1753365818934,40.3,185.23,185.18,9.69983138]
[1753365819330,40.3,185.23,185.19,0.7]
[1753365819659,40.3,185.23,185.19,5.3998596]
[1753365819847,54.03549833,185.23,185.18,13.73549833]
[1753365820043,13.73549833,185.22,185.16,14.43549833]
[1753365820357,40.3,185.23,185.19,13.73549833]
[1753365820857,54.03549833,185.23,185.17,0.7]
[1753365821058,40.3,185.23,185.17,14.43549833]
[1753365821236,54.03549833,185.23,185.18,13.73549833]